[Event "Titled Tuesday Blitz December 14 2021"]
[White "Svane, Frederik"]
[Black "Bonte, Andrei-Mihai"]
[WhiteFideId "12923044"]
[BlackFideId "1210297"]
[WhiteElo "2459"]
[BlackElo "2204"]
[Result "1-0"]
[Round "03"]
[TimeControl "180+1"]
[Date "2021.12.15"]
[WhiteClock "0:00:57"]
[BlackClock "0:00:05"]

1. e4 {[%clk 0:03:00]}  c6 {[%clk 0:02:45]} 2. Nf3 {[%clk 0:02:59]}  d5 {[%clk 0:02:45]} 3. exd5 {[%clk 0:03:00]}  cxd5 {[%clk 0:02:44]} 4. d4 {[%clk 0:03:01]}  Nc6 {[%clk 0:02:39]} 5. c3 {[%clk 0:03:01]}  Bg4 {[%clk 0:02:31]} 6. h3 {[%clk 0:03:01]}  Bxf3 {[%clk 0:02:11]} 7. Qxf3 {[%clk 0:03:02]}  e6 {[%clk 0:02:07]} 8. Bd3 {[%clk 0:03:02]}  Nf6 {[%clk 0:02:04]} 9. O-O {[%clk 0:03:02]}  Be7 {[%clk 0:01:57]} 10. Qe2 {[%clk 0:02:56]}  O-O {[%clk 0:01:53]} 11. Bf4 {[%clk 0:02:54]}  h6 {[%clk 0:01:38]} 12. Nd2 {[%clk 0:02:54]}  Bd6 {[%clk 0:01:38]} 13. Be3 {[%clk 0:02:49]}  Re8 {[%clk 0:01:35]} 14. Nf3 {[%clk 0:02:45]}  Qc7 {[%clk 0:01:33]} 15. Rfe1 {[%clk 0:02:42]}  a6 {[%clk 0:01:32]} 16. a4 {[%clk 0:02:28]}  Rad8 {[%clk 0:01:29]} 17. Rad1 {[%clk 0:02:20]}  Na5 {[%clk 0:00:53]} 18. Ne5 {[%clk 0:02:12]}  Bxe5 {[%clk 0:00:40]} 19. dxe5 {[%clk 0:02:12]}  Qxe5 {[%clk 0:00:22]} 20. Bb6 {[%clk 0:02:10]}  Qxe2 {[%clk 0:00:22]} 21. Rxe2 {[%clk 0:02:10]}  Nc6 {[%clk 0:00:20]} 22. Bxd8 {[%clk 0:02:10]}  Rxd8 {[%clk 0:00:20]} 23. Bc2 {[%clk 0:02:04]}  Kf8 {[%clk 0:00:19]} 24. g4 {[%clk 0:01:56]}  g5 {[%clk 0:00:17]} 25. Kg2 {[%clk 0:01:54]}  Ne7 {[%clk 0:00:16]} 26. Kg3 {[%clk 0:01:51]}  Kg7 {[%clk 0:00:16]} 27. h4 {[%clk 0:01:40]}  Rc8 {[%clk 0:00:15]} 28. f4 {[%clk 0:01:33]}  Rc4 {[%clk 0:00:14]} 29. Rd4 {[%clk 0:01:32]}  Rxd4 {[%clk 0:00:13]} 30. cxd4 {[%clk 0:01:33]}  gxh4+ {[%clk 0:00:13]} 31. Kxh4 {[%clk 0:01:33]}  Nc6 {[%clk 0:00:13]} 32. Rd2 {[%clk 0:01:28]}  Ne4 {[%clk 0:00:11]} 33. Bxe4 {[%clk 0:01:24]}  dxe4 {[%clk 0:00:12]} 34. Kg3 {[%clk 0:01:10]}  f5 {[%clk 0:00:11]} 35. gxf5 {[%clk 0:01:03]}  exf5 {[%clk 0:00:11]} 36. d5 {[%clk 0:01:03]}  Nd8 {[%clk 0:00:10]} 37. Kf2 {[%clk 0:01:03]}  Kf6 {[%clk 0:00:10]} 38. Ke3 {[%clk 0:01:03]}  Nf7 {[%clk 0:00:09]} 39. d6 {[%clk 0:01:00]}  Ke6 {[%clk 0:00:09]} 40. d7 {[%clk 0:01:00]}  Ke7 {[%clk 0:00:10]} 41. Rd5 {[%clk 0:00:58]}  h5 {[%clk 0:00:07]} 42. Rxf5 {[%clk 0:00:56]}  Nd8 {[%clk 0:00:03]} 43. Rxh5 {[%clk 0:00:56]}  Kxd7 {[%clk 0:00:04]} 44. Rd5+ {[%clk 0:00:56]}  Kc7 {[%clk 0:00:04]} 45. Rxd8 {[%clk 0:00:57]}  Kxd8 {[%clk 0:00:04]} 46. Kxe4 {[%clk 0:00:58]}  Kc7 {[%clk 0:00:05]} 47. Ke5 {[%clk 0:00:57]} 1-0


[Site "https://www.chess.com"]

[Event "Titled Tuesday Blitz December 14 2021"]
[White "Tari, Aryan"]
[Black "Talibov, Shiroghlan"]
[WhiteFideId "1510045"]
[BlackFideId "13429078"]
[WhiteElo "2656"]
[BlackElo "2073"]
[Result "1-0"]
[Round "03"]
[TimeControl "180+1"]
[Date "2021.12.14"]
[WhiteClock "0:00:13"]
[BlackClock "0:00:01"]

1. e4 {[%clk 0:03:00]}  c6 {[%clk 0:03:00]} 2. d4 {[%clk 0:03:00]}  d5 {[%clk 0:03:00]} 3. exd5 {[%clk 0:03:00]}  cxd5 {[%clk 0:03:01]} 4. Nf3 {[%clk 0:03:00]}  Nf6 {[%clk 0:03:02]} 5. Ne5 {[%clk 0:03:01]}  a6 {[%clk 0:03:00]} 6. c3 {[%clk 0:02:57]}  g6 {[%clk 0:02:58]} 7. Bd3 {[%clk 0:02:57]}  Bg7 {[%clk 0:02:58]} 8. O-O {[%clk 0:02:57]}  O-O {[%clk 0:02:58]} 9. Re1 {[%clk 0:02:57]}  Nc6 {[%clk 0:02:57]} 10. Nxc6 {[%clk 0:02:38]}  bxc6 {[%clk 0:02:58]} 11. Nd2 {[%clk 0:02:39]}  Bf5 {[%clk 0:02:56]} 12. Bxf5 {[%clk 0:02:34]}  gxf5 {[%clk 0:02:57]} 13. Nb3 {[%clk 0:02:32]}  e6 {[%clk 0:02:54]} 14. Nc5 {[%clk 0:02:29]}  Ne4 {[%clk 0:02:49]} 15. Nd3 {[%clk 0:02:29]}  Rc8 {[%clk 0:02:40]} 16. f3 {[%clk 0:02:23]}  Nd6 {[%clk 0:02:36]} 17. Bf4 {[%clk 0:02:23]}  Nb7 {[%clk 0:02:26]} 18. b4 {[%clk 0:02:21]}  Nd6 {[%clk 0:02:25]} 19. a4 {[%clk 0:02:14]}  Nc4 {[%clk 0:02:24]} 20. a5 {[%clk 0:02:13]}  Kh8 {[%clk 0:02:21]} 21. Nc5 {[%clk 0:02:10]}  Ra8 {[%clk 0:02:20]} 22. Qc2 {[%clk 0:02:02]}  Bf6 {[%clk 0:02:19]} 23. Kh1 {[%clk 0:01:57]}  Rg8 {[%clk 0:02:17]} 24. Re2 {[%clk 0:01:55]}  Be7 {[%clk 0:02:15]} 25. Nd3 {[%clk 0:01:45]}  Bf6 {[%clk 0:02:14]} 26. Rg1 {[%clk 0:01:37]}  Bg5 {[%clk 0:02:08]} 27. Qc1 {[%clk 0:01:33]}  Rg6 {[%clk 0:01:52]} 28. Bxg5 {[%clk 0:01:22]}  Rxg5 {[%clk 0:01:44]} 29. Qf4 {[%clk 0:01:20]}  Qf6 {[%clk 0:01:41]} 30. g4 {[%clk 0:01:07]}  Qh6 {[%clk 0:01:13]} 31. Reg2 {[%clk 0:00:57]}  Qh4 {[%clk 0:01:03]} 32. Ne5 {[%clk 0:00:46]}  Nd6 {[%clk 0:00:14]} 33. Nxc6 {[%clk 0:00:35]}  Ne8 {[%clk 0:00:12]} 34. Qe5+ {[%clk 0:00:28]}  f6 {[%clk 0:00:12]} 35. Qxe6 {[%clk 0:00:25]}  fxg4 {[%clk 0:00:13]} 36. Rxg4 {[%clk 0:00:23]}  Ng7 {[%clk 0:00:05]} 37. Qe7 {[%clk 0:00:16]}  Qh3 {[%clk 0:00:03]} 38. Qxf6 {[%clk 0:00:12]}  Rxg4 {[%clk 0:00:02]} 39. Rxg4 {[%clk 0:00:12]}  Rg8 {[%clk 0:00:01]} 40. Ne7 {[%clk 0:00:13]}  Qf1+ {[%clk 0:00:01]} 41. Rg1 {[%clk 0:00:13]}  Qd3 {[%clk 0:00:01]} 1-0


[Site "https://www.chess.com"]

[Event "Titled Tuesday Blitz December 14 2021"]
[White "Timofeev, Artyom"]
[Black "Panesar Vedant"]
[WhiteFideId "4140419"]
[BlackFideId "35033018"]
[WhiteElo "2628"]
[BlackElo "1971"]
[Result "1-0"]
[Round "03"]
[TimeControl "180+1"]
[Date "2021.12.14"]
[WhiteClock "0:00:08"]
[BlackClock "0:00:19"]

1. c4 {[%clk 0:03:00]}  Nf6 {[%clk 0:02:58]} 2. Nc3 {[%clk 0:03:00]}  e5 {[%clk 0:02:58]} 3. e3 {[%clk 0:03:00]}  Nc6 {[%clk 0:02:57]} 4. d3 {[%clk 0:02:59]}  Bb4 {[%clk 0:02:56]} 5. Bd2 {[%clk 0:02:59]}  O-O {[%clk 0:02:55]} 6. Nf3 {[%clk 0:02:58]}  Bxc3 {[%clk 0:02:53]} 7. Bxc3 {[%clk 0:02:58]}  Qe7 {[%clk 0:02:54]} 8. Be2 {[%clk 0:02:57]}  d5 {[%clk 0:02:54]} 9. cxd5 {[%clk 0:02:55]}  Nxd5 {[%clk 0:02:55]} 10. O-O {[%clk 0:02:53]}  Rd8 {[%clk 0:02:49]} 11. Qc2 {[%clk 0:02:42]}  Bg4 {[%clk 0:02:41]} 12. a3 {[%clk 0:02:39]}  Rd7 {[%clk 0:02:35]} 13. h3 {[%clk 0:02:30]}  Bh5 {[%clk 0:02:32]} 14. Bd2 {[%clk 0:02:15]}  Bg6 {[%clk 0:02:27]} 15. Rfd1 {[%clk 0:02:07]}  Rad8 {[%clk 0:02:27]} 16. Be1 {[%clk 0:02:05]}  Nb6 {[%clk 0:02:22]} 17. b4 {[%clk 0:02:00]}  a6 {[%clk 0:02:22]} 18. Qb3 {[%clk 0:01:58]}  Qe6 {[%clk 0:02:01]} 19. Qxe6 {[%clk 0:01:49]}  fxe6 {[%clk 0:02:01]} 20. Ng5 {[%clk 0:01:48]}  Bxd3 {[%clk 0:01:53]} 21. Rxd3 {[%clk 0:01:36]}  Rxd3 {[%clk 0:01:54]} 22. Nxe6 {[%clk 0:01:36]}  R3d6 {[%clk 0:01:08]} 23. Nxd8 {[%clk 0:01:34]}  Nxd8 {[%clk 0:01:04]} 24. Bc3 {[%clk 0:01:27]}  Nf7 {[%clk 0:01:03]} 25. Bf3 {[%clk 0:01:22]}  c6 {[%clk 0:01:00]} 26. Be4 {[%clk 0:01:08]}  Nd5 {[%clk 0:00:47]} 27. Be1 {[%clk 0:01:07]}  Nf6 {[%clk 0:00:43]} 28. Bc2 {[%clk 0:01:07]}  Nd8 {[%clk 0:00:33]} 29. Bc3 {[%clk 0:01:06]}  Nf7 {[%clk 0:00:30]} 30. Kf1 {[%clk 0:01:05]}  Kf8 {[%clk 0:00:27]} 31. Ke2 {[%clk 0:01:05]}  Ke8 {[%clk 0:00:26]} 32. Bb3 {[%clk 0:00:58]}  Nd5 {[%clk 0:00:24]} 33. Bb2 {[%clk 0:00:57]}  Ke7 {[%clk 0:00:21]} 34. g3 {[%clk 0:00:56]}  Rd8 {[%clk 0:00:19]} 35. e4 {[%clk 0:00:55]}  Nf6 {[%clk 0:00:18]} 36. Ke3 {[%clk 0:00:52]}  Ng5 {[%clk 0:00:17]} 37. Bc2 {[%clk 0:00:44]}  Nf7 {[%clk 0:00:15]} 38. f3 {[%clk 0:00:37]}  Nd6 {[%clk 0:00:15]} 39. Bd3 {[%clk 0:00:37]}  Nf7 {[%clk 0:00:14]} 40. a4 {[%clk 0:00:36]}  h5 {[%clk 0:00:14]} 41. h4 {[%clk 0:00:36]}  g6 {[%clk 0:00:14]} 42. Bc3 {[%clk 0:00:31]}  Kf8 {[%clk 0:00:14]} 43. Rb1 {[%clk 0:00:30]}  Ke7 {[%clk 0:00:14]} 44. b5 {[%clk 0:00:30]}  axb5 {[%clk 0:00:15]} 45. axb5 {[%clk 0:00:30]}  c5 {[%clk 0:00:16]} 46. b6 {[%clk 0:00:30]}  Nd7 {[%clk 0:00:13]} 47. Bc4 {[%clk 0:00:29]}  Ra8 {[%clk 0:00:13]} 48. Bd5 {[%clk 0:00:28]}  Ra3 {[%clk 0:00:13]} 49. Kd2 {[%clk 0:00:28]}  Ra6 {[%clk 0:00:13]} 50. Bxb7 {[%clk 0:00:22]}  Rxb6 {[%clk 0:00:13]} 51. Rxb6 {[%clk 0:00:22]}  Nxb6 {[%clk 0:00:14]} 52. Kd3 {[%clk 0:00:21]}  Nd6 {[%clk 0:00:14]} 53. Bc6 {[%clk 0:00:20]}  c4+ {[%clk 0:00:15]} 54. Kc2 {[%clk 0:00:19]}  Ke6 {[%clk 0:00:15]} 55. Bb4 {[%clk 0:00:17]}  Nbc8 {[%clk 0:00:15]} 56. Bd5+ {[%clk 0:00:16]}  Kd7 {[%clk 0:00:15]} 57. Kc3 {[%clk 0:00:16]}  Nb6 {[%clk 0:00:16]} 58. Bxd6 {[%clk 0:00:13]}  Kxd6 {[%clk 0:00:17]} 59. Bxc4 {[%clk 0:00:13]}  Ke7 {[%clk 0:00:16]} 60. Kb4 {[%clk 0:00:13]}  Kf6 {[%clk 0:00:17]} 61. Kc5 {[%clk 0:00:13]}  Nd7+ {[%clk 0:00:17]} 62. Kd6 {[%clk 0:00:13]}  Nf8 {[%clk 0:00:18]} 63. f4 {[%clk 0:00:11]}  exf4 {[%clk 0:00:18]} 64. gxf4 {[%clk 0:00:11]}  Nh7 {[%clk 0:00:18]} 65. Bd3 {[%clk 0:00:11]}  Kf7 {[%clk 0:00:18]} 66. e5 {[%clk 0:00:11]}  Nf8 {[%clk 0:00:19]} 67. Bc4+ {[%clk 0:00:11]}  Kg7 {[%clk 0:00:19]} 68. e6 {[%clk 0:00:10]}  Nh7 {[%clk 0:00:17]} 69. e7 {[%clk 0:00:10]}  Nf6 {[%clk 0:00:17]} 70. Ke6 {[%clk 0:00:08]}  Ne8 {[%clk 0:00:17]} 71. Bb3 {[%clk 0:00:08]}  Kh6 {[%clk 0:00:16]} 72. Ba4 {[%clk 0:00:07]}  Nc7+ {[%clk 0:00:15]} 73. Kf7 {[%clk 0:00:05]}  Kh7 {[%clk 0:00:15]} 74. e8=Q {[%clk 0:00:05]}  Nxe8 {[%clk 0:00:16]} 75. Bxe8 {[%clk 0:00:05]}  Kh6 {[%clk 0:00:16]} 76. Kf6 {[%clk 0:00:05]}  Kh7 {[%clk 0:00:17]} 77. Bxg6+ {[%clk 0:00:05]}  Kh6 {[%clk 0:00:18]} 78. Bxh5 {[%clk 0:00:06]}  Kh7 {[%clk 0:00:17]} 79. f5 {[%clk 0:00:06]}  Kh6 {[%clk 0:00:18]} 80. Ke6 {[%clk 0:00:07]}  Kh7 {[%clk 0:00:19]} 81. f6 {[%clk 0:00:07]}  Kh6 {[%clk 0:00:19]} 82. f7 {[%clk 0:00:08]}  Kg7 {[%clk 0:00:20]} 83. Ke7 {[%clk 0:00:08]}  Kh7 {[%clk 0:00:20]} 84. Bg6+ {[%clk 0:00:08]}  Kg7 {[%clk 0:00:19]} 85. f8=Q+ {[%clk 0:00:08]} 1-0


[Site "https://www.chess.com"]

[Event "Titled Tuesday Blitz December 14 2021"]
[White "Vidit, Santosh Gujrathi"]
[Black "Gabrielian, Artur"]
[WhiteFideId "5029465"]
[BlackFideId "4131002"]
[WhiteElo "2628"]
[BlackElo "2440"]
[Result "1/2-1/2"]
[Round "03"]
[TimeControl "180+1"]
[Date "2021.12.14"]
[WhiteClock "0:00:02"]
[BlackClock "0:00:12"]

1. e4 {[%clk 0:03:00]}  c5 {[%clk 0:02:59]} 2. Nf3 {[%clk 0:03:00]}  d6 {[%clk 0:03:00]} 3. d4 {[%clk 0:03:01]}  cxd4 {[%clk 0:03:01]} 4. Nxd4 {[%clk 0:03:02]}  Nf6 {[%clk 0:03:01]} 5. Nc3 {[%clk 0:03:02]}  Nc6 {[%clk 0:03:01]} 6. Bg5 {[%clk 0:02:59]}  e6 {[%clk 0:03:01]} 7. Qd2 {[%clk 0:03:00]}  a6 {[%clk 0:03:01]} 8. O-O-O {[%clk 0:03:00]}  Bd7 {[%clk 0:03:01]} 9. f3 {[%clk 0:02:59]}  Nxd4 {[%clk 0:02:59]} 10. Qxd4 {[%clk 0:02:59]}  h6 {[%clk 0:02:59]} 11. Be3 {[%clk 0:02:58]}  Bc6 {[%clk 0:02:59]} 12. Kb1 {[%clk 0:02:55]}  d5 {[%clk 0:02:59]} 13. e5 {[%clk 0:02:50]}  Nd7 {[%clk 0:02:58]} 14. f4 {[%clk 0:02:48]}  Bc5 {[%clk 0:02:56]} 15. Qd2 {[%clk 0:02:48]}  Bxe3 {[%clk 0:02:52]} 16. Qxe3 {[%clk 0:02:49]}  Qb6 {[%clk 0:02:53]} 17. Qxb6 {[%clk 0:02:19]}  Nxb6 {[%clk 0:02:52]} 18. Bd3 {[%clk 0:02:15]}  Nd7 {[%clk 0:02:47]} 19. Ne2 {[%clk 0:02:07]}  g5 {[%clk 0:02:44]} 20. g3 {[%clk 0:02:07]}  gxf4 {[%clk 0:02:43]} 21. gxf4 {[%clk 0:02:08]}  Ke7 {[%clk 0:02:43]} 22. Rhg1 {[%clk 0:02:05]}  Rhg8 {[%clk 0:02:43]} 23. Rg3 {[%clk 0:01:41]}  f6 {[%clk 0:02:17]} 24. exf6+ {[%clk 0:01:38]}  Kxf6 {[%clk 0:02:10]} 25. Rh3 {[%clk 0:01:32]}  Ke7 {[%clk 0:01:58]} 26. Nd4 {[%clk 0:01:06]}  Raf8 {[%clk 0:01:56]} 27. Rxh6 {[%clk 0:00:52]}  Rf6 {[%clk 0:01:53]} 28. Rxf6 {[%clk 0:00:39]}  Kxf6 {[%clk 0:01:48]} 29. Re1 {[%clk 0:00:24]}  Nc5 {[%clk 0:01:26]} 30. b4 {[%clk 0:00:24]}  Nxd3 {[%clk 0:01:26]} 31. Rxe6+ {[%clk 0:00:20]}  Kf7 {[%clk 0:01:26]} 32. cxd3 {[%clk 0:00:21]}  Rg4 {[%clk 0:01:26]} 33. Re5 {[%clk 0:00:15]}  Rxf4 {[%clk 0:01:18]} 34. Rf5+ {[%clk 0:00:16]}  Rxf5 {[%clk 0:01:18]} 35. Nxf5 {[%clk 0:00:16]}  Kf6 {[%clk 0:01:09]} 36. Nd4 {[%clk 0:00:17]}  Be8 {[%clk 0:01:08]} 37. Kc2 {[%clk 0:00:17]}  b6 {[%clk 0:01:08]} 38. Kd2 {[%clk 0:00:17]}  a5 {[%clk 0:01:06]} 39. bxa5 {[%clk 0:00:16]}  bxa5 {[%clk 0:01:07]} 40. Ke3 {[%clk 0:00:17]}  Ke5 {[%clk 0:01:07]} 41. h4 {[%clk 0:00:13]}  a4 {[%clk 0:01:07]} 42. Ne2 {[%clk 0:00:13]}  a3 {[%clk 0:00:58]} 43. Nd4 {[%clk 0:00:10]}  Ba4 {[%clk 0:00:50]} 44. h5 {[%clk 0:00:06]}  Kf6 {[%clk 0:00:50]} 45. Kf4 {[%clk 0:00:06]}  Bd1 {[%clk 0:00:51]} 46. h6 {[%clk 0:00:04]}  Kg6 {[%clk 0:00:44]} 47. Ke5 {[%clk 0:00:03]}  Kxh6 {[%clk 0:00:44]} 48. Kxd5 {[%clk 0:00:03]}  Kg7 {[%clk 0:00:45]} 49. Kc4 {[%clk 0:00:03]}  Kf6 {[%clk 0:00:45]} 50. Kb4 {[%clk 0:00:03]}  Ke5 {[%clk 0:00:43]} 51. Nb3 {[%clk 0:00:03]}  Bc2 {[%clk 0:00:39]} 52. d4+ {[%clk 0:00:04]}  Kd5 {[%clk 0:00:39]} 53. Kxa3 {[%clk 0:00:04]}  Kc4 {[%clk 0:00:37]} 54. Kb2 {[%clk 0:00:04]}  Bd1 {[%clk 0:00:31]} 55. Ka3 {[%clk 0:00:05]}  Bc2 {[%clk 0:00:29]} 56. Ka4 {[%clk 0:00:05]}  Bd1 {[%clk 0:00:27]} 57. Ka5 {[%clk 0:00:04]}  Bc2 {[%clk 0:00:25]} 58. Kb6 {[%clk 0:00:03]}  Bd1 {[%clk 0:00:15]} 59. Kc6 {[%clk 0:00:03]}  Bf3+ {[%clk 0:00:14]} 60. Kd6 {[%clk 0:00:04]}  Bg2 {[%clk 0:00:12]} 61. Ke5 {[%clk 0:00:04]}  Bh1 {[%clk 0:00:11]} 62. Nd2+ {[%clk 0:00:01]}  Kd3 {[%clk 0:00:12]} 63. Nb1 {[%clk 0:00:01]}  Kc4 {[%clk 0:00:12]} 64. a4 {[%clk 0:00:01]}  Kb4 {[%clk 0:00:12]} 65. d5 {[%clk 0:00:01]}  Bxd5 {[%clk 0:00:11]} 66. Kxd5 {[%clk 0:00:02]}  Kxa4 {[%clk 0:00:12]} 1/2-1/2


[Site "https://www.chess.com"]

[Event "Titled Tuesday Blitz December 14 2021"]
[White "Visakh N R"]
[Black "Skatchkov, Valery"]
[WhiteFideId "25012223"]
[BlackFideId "24195812"]
[WhiteElo "2454"]
[BlackElo "2195"]
[Result "0-1"]
[Round "03"]
[TimeControl "180+1"]
[Date "2021.12.14"]
[WhiteClock "0:01:33"]
[BlackClock "0:00:59"]

1. e4 {[%clk 0:03:00]}  e5 {[%clk 0:02:59]} 2. Nf3 {[%clk 0:03:00]}  Nf6 {[%clk 0:03:00]} 3. Nxe5 {[%clk 0:02:49]}  d6 {[%clk 0:03:00]} 4. Nc4 {[%clk 0:02:48]}  Nxe4 {[%clk 0:03:00]} 5. Qe2 {[%clk 0:02:48]}  Qe7 {[%clk 0:02:59]} 6. Ne3 {[%clk 0:02:40]}  Nc6 {[%clk 0:02:55]} 7. Nd5 {[%clk 0:02:38]}  Nd4 {[%clk 0:02:42]} 8. Qc4 {[%clk 0:01:54]}  Nc3+ {[%clk 0:02:26]} 9. Be2 {[%clk 0:01:47]}  Nxc2+ {[%clk 0:01:46]} 10. Kf1 {[%clk 0:01:46]}  Qxe2+ {[%clk 0:01:47]} 11. Qxe2+ {[%clk 0:01:45]}  Nxe2 {[%clk 0:01:47]} 12. Kxe2 {[%clk 0:01:44]}  Kd8 {[%clk 0:01:44]} 13. d3 {[%clk 0:01:38]}  Nxa1 {[%clk 0:01:40]} 14. Na3 {[%clk 0:01:39]}  Be6 {[%clk 0:01:35]} 15. Bg5+ {[%clk 0:01:34]}  f6 {[%clk 0:00:59]} 16. Nxf6 {[%clk 0:01:32]}  h6 {[%clk 0:00:59]} 17. Bh4 {[%clk 0:01:33]}  Be7 {[%clk 0:00:59]} 0-1


[Site "https://www.chess.com"]

[Event "Titled Tuesday Blitz December 14 2021"]
[White "Yeremyan, Alen"]
[Black "Babazada, Khazar"]
[WhiteFideId "13308998"]
[BlackFideId "13413554"]
[WhiteElo "2158"]
[BlackElo "2302"]
[Result "1-0"]
[Round "03"]
[TimeControl "180+1"]
[Date "2021.12.14"]
[WhiteClock "0:00:59"]
[BlackClock "0:00:33"]

1. e4 {[%clk 0:02:57]}  Nf6 {[%clk 0:03:00]} 2. e5 {[%clk 0:02:56]}  Nd5 {[%clk 0:03:00]} 3. d4 {[%clk 0:02:57]}  Nb6 {[%clk 0:03:01]} 4. c4 {[%clk 0:02:51]}  d6 {[%clk 0:03:01]} 5. f4 {[%clk 0:02:50]}  dxe5 {[%clk 0:03:01]} 6. fxe5 {[%clk 0:02:51]}  Bf5 {[%clk 0:03:02]} 7. Nc3 {[%clk 0:02:50]}  e6 {[%clk 0:03:02]} 8. Be3 {[%clk 0:02:51]}  Be7 {[%clk 0:03:00]} 9. Nf3 {[%clk 0:02:49]}  O-O {[%clk 0:03:01]} 10. Be2 {[%clk 0:02:49]}  f6 {[%clk 0:03:00]} 11. O-O {[%clk 0:02:49]}  Nc6 {[%clk 0:02:59]} 12. Nh4 {[%clk 0:02:24]}  fxe5 {[%clk 0:02:57]} 13. Nxf5 {[%clk 0:02:24]}  exf5 {[%clk 0:02:58]} 14. d5 {[%clk 0:02:25]}  Nd4 {[%clk 0:02:47]} 15. Bxd4 {[%clk 0:02:25]}  exd4 {[%clk 0:02:48]} 16. Qxd4 {[%clk 0:02:26]}  Nd7 {[%clk 0:02:48]} 17. Kh1 {[%clk 0:02:25]}  Bc5 {[%clk 0:02:46]} 18. Qd2 {[%clk 0:02:25]}  Qh4 {[%clk 0:02:32]} 19. Qf4 {[%clk 0:02:25]}  Qxf4 {[%clk 0:02:25]} 20. Rxf4 {[%clk 0:02:25]}  Rae8 {[%clk 0:02:24]} 21. Bd3 {[%clk 0:02:10]}  g6 {[%clk 0:02:23]} 22. Rff1 {[%clk 0:02:07]}  Ne5 {[%clk 0:02:23]} 23. Be2 {[%clk 0:02:05]}  Bd4 {[%clk 0:02:13]} 24. Nb5 {[%clk 0:02:05]}  Bb6 {[%clk 0:02:13]} 25. c5 {[%clk 0:01:56]}  Bxc5 {[%clk 0:02:08]} 26. Nxc7 {[%clk 0:01:56]}  Rc8 {[%clk 0:01:56]} 27. Ne6 {[%clk 0:01:57]}  Rfe8 {[%clk 0:01:51]} 28. Bb5 {[%clk 0:01:57]}  Red8 {[%clk 0:01:19]} 29. Nxd8 {[%clk 0:01:51]}  Rxd8 {[%clk 0:01:20]} 30. Rfe1 {[%clk 0:01:44]}  Ng4 {[%clk 0:01:19]} 31. g3 {[%clk 0:01:33]}  Kf7 {[%clk 0:01:19]} 32. Rac1 {[%clk 0:01:27]}  Bd6 {[%clk 0:01:20]} 33. Kg2 {[%clk 0:01:27]}  h5 {[%clk 0:01:17]} 34. a3 {[%clk 0:01:17]}  Ne5 {[%clk 0:01:17]} 35. Rc3 {[%clk 0:01:11]}  h4 {[%clk 0:01:16]} 36. Rec1 {[%clk 0:01:06]}  a6 {[%clk 0:00:56]} 37. Ba4 {[%clk 0:01:05]}  b5 {[%clk 0:00:45]} 38. Bb3 {[%clk 0:01:05]}  Kf6 {[%clk 0:00:40]} 39. Rc8 {[%clk 0:01:03]}  Rd7 {[%clk 0:00:40]} 40. Re8 {[%clk 0:00:58]}  Nd3 {[%clk 0:00:39]} 41. Re6+ {[%clk 0:00:58]}  Kf7 {[%clk 0:00:33]} 42. Rc6 {[%clk 0:00:59]} 1-0


[Site "https://www.chess.com"]

[Event "Titled Tuesday Blitz December 14 2021"]
[White "Aradhya, Garg"]
[Black "Tokman, Ariel"]
[WhiteFideId "25006746"]
[BlackFideId "117420"]
[WhiteElo "2176"]
[BlackElo "2293"]
[Result "1/2-1/2"]
[Round "04"]
[TimeControl "180+1"]
[Date "2021.12.15"]
[WhiteClock "0:00:02"]
[BlackClock "0:00:02"]

1. d4 {[%clk 0:03:00]}  Nf6 {[%clk 0:02:59]} 2. c4 {[%clk 0:03:01]}  g6 {[%clk 0:02:59]} 3. g3 {[%clk 0:03:00]}  Bg7 {[%clk 0:02:59]} 4. Bg2 {[%clk 0:03:01]}  d5 {[%clk 0:02:58]} 5. cxd5 {[%clk 0:02:51]}  Nxd5 {[%clk 0:02:59]} 6. Nf3 {[%clk 0:02:51]}  O-O {[%clk 0:02:59]} 7. O-O {[%clk 0:02:50]}  Nc6 {[%clk 0:02:59]} 8. e4 {[%clk 0:02:50]}  Nb6 {[%clk 0:03:00]} 9. d5 {[%clk 0:02:50]}  Na5 {[%clk 0:03:00]} 10. Qe1 {[%clk 0:02:44]}  Nac4 {[%clk 0:02:59]} 11. Nc3 {[%clk 0:02:44]}  c6 {[%clk 0:02:54]} 12. b3 {[%clk 0:02:36]}  Nd6 {[%clk 0:02:45]} 13. Bf4 {[%clk 0:01:59]}  cxd5 {[%clk 0:02:41]} 14. Rd1 {[%clk 0:01:47]}  d4 {[%clk 0:01:12]} 15. Nxd4 {[%clk 0:01:39]}  e5 {[%clk 0:01:12]} 16. Ndb5 {[%clk 0:01:39]}  exf4 {[%clk 0:01:13]} 17. Rxd6 {[%clk 0:01:23]}  Qe7 {[%clk 0:01:06]} 18. gxf4 {[%clk 0:01:22]}  a6 {[%clk 0:01:01]} 19. Rxb6 {[%clk 0:01:22]}  axb5 {[%clk 0:01:01]} 20. Rxb5 {[%clk 0:01:10]}  Qh4 {[%clk 0:00:55]} 21. f5 {[%clk 0:00:45]}  Bd7 {[%clk 0:00:34]} 22. Rxb7 {[%clk 0:00:43]}  Be5 {[%clk 0:00:31]} 23. f4 {[%clk 0:00:15]}  Qxe1 {[%clk 0:00:32]} 24. Rxe1 {[%clk 0:00:15]}  Bxc3 {[%clk 0:00:33]} 25. Rc1 {[%clk 0:00:15]}  Bd4+ {[%clk 0:00:33]} 26. Kh1 {[%clk 0:00:16]}  Bc8 {[%clk 0:00:21]} 27. Rbc7 {[%clk 0:00:15]}  gxf5 {[%clk 0:00:21]} 28. exf5 {[%clk 0:00:11]}  Bxf5 {[%clk 0:00:18]} 29. Bxa8 {[%clk 0:00:10]}  Rxa8 {[%clk 0:00:16]} 30. Kg2 {[%clk 0:00:10]}  Rxa2+ {[%clk 0:00:16]} 31. Kg3 {[%clk 0:00:09]}  Kg7 {[%clk 0:00:15]} 32. R7c4 {[%clk 0:00:09]}  Bf6 {[%clk 0:00:14]} 33. b4 {[%clk 0:00:08]}  Rb2 {[%clk 0:00:14]} 34. b5 {[%clk 0:00:07]}  Rxb5 {[%clk 0:00:12]} 35. Rc5 {[%clk 0:00:07]}  Rb3+ {[%clk 0:00:12]} 36. Kg2 {[%clk 0:00:06]}  Kg6 {[%clk 0:00:10]} 37. R5c4 {[%clk 0:00:04]}  h5 {[%clk 0:00:10]} 38. h4 {[%clk 0:00:04]}  Rb2+ {[%clk 0:00:10]} 39. Kf3 {[%clk 0:00:03]}  Rb3+ {[%clk 0:00:10]} 40. Kf2 {[%clk 0:00:03]}  Bxh4+ {[%clk 0:00:08]} 41. Kg2 {[%clk 0:00:03]}  Bf6 {[%clk 0:00:06]} 42. Kh2 {[%clk 0:00:04]}  Bg4 {[%clk 0:00:05]} 43. Rg1 {[%clk 0:00:04]}  Rb2+ {[%clk 0:00:05]} 44. Rg2 {[%clk 0:00:04]}  Rxg2+ {[%clk 0:00:05]} 45. Kxg2 {[%clk 0:00:05]}  Kf5 {[%clk 0:00:05]} 46. Kg3 {[%clk 0:00:04]}  Be7 {[%clk 0:00:05]} 47. Rd4 {[%clk 0:00:03]}  f6 {[%clk 0:00:05]} 48. Rd5+ {[%clk 0:00:03]}  Ke6 {[%clk 0:00:04]} 49. Ra5 {[%clk 0:00:04]}  f5 {[%clk 0:00:03]} 50. Kg2 {[%clk 0:00:03]}  Bd6 {[%clk 0:00:04]} 51. Kg3 {[%clk 0:00:03]}  Be7 {[%clk 0:00:05]} 52. Ra6+ {[%clk 0:00:04]}  Kf7 {[%clk 0:00:04]} 53. Ra5 {[%clk 0:00:04]}  h4+ {[%clk 0:00:04]} 54. Kg2 {[%clk 0:00:04]}  Ke6 {[%clk 0:00:05]} 55. Kf2 {[%clk 0:00:04]}  Bd6 {[%clk 0:00:05]} 56. Ke3 {[%clk 0:00:04]}  h3 {[%clk 0:00:05]} 57. Ra2 {[%clk 0:00:04]}  Kd5 {[%clk 0:00:04]} 58. Rd2+ {[%clk 0:00:02]}  Ke6 {[%clk 0:00:05]} 59. Kf2 {[%clk 0:00:02]}  Bxf4 {[%clk 0:00:04]} 60. Rd3 {[%clk 0:00:02]}  Ke5 {[%clk 0:00:04]} 61. Kg1 {[%clk 0:00:02]}  Ke4 {[%clk 0:00:04]} 62. Ra3 {[%clk 0:00:02]}  h2+ {[%clk 0:00:02]} 63. Kh1 {[%clk 0:00:02]}  Bf3+ {[%clk 0:00:02]} 64. Rxf3 {[%clk 0:00:02]}  Be5 {[%clk 0:00:02]} 65. Rf1 {[%clk 0:00:02]}  f4 {[%clk 0:00:02]} 66. Rxf4+ {[%clk 0:00:03]}  Kxf4 {[%clk 0:00:02]} 67. Kxh2 {[%clk 0:00:02]} 1/2-1/2


[Site "https://www.chess.com"]